[Event "*** SCC Grand Prix: Titled Tuesday Blitz"]
[Site "Chess.com"]
[Date "2020.08.11"]
[Round "2"]
[White "vesalhamedinia"]
[Black "Alomaterapia"]
[Result "1-0"]
[WhiteElo "2290"]
[BlackElo "2515"]
[TimeControl "180+1"]
[EndTime "10:18:11 PDT"]
[Termination "vesalhamedinia won by checkmate"]

1. d4 {[%clk 0:02:58.9]} 1... Nf6 {[%clk 0:02:57.8]} 2. c4 {[%clk 0:02:59.2]}
2... g6 {[%clk 0:02:57.6]} 3. Nc3 {[%clk 0:02:58.9]} 3... Bg7 {[%clk 0:02:58.2]}
4. h3 {[%clk 0:02:59.4]} 4... d5 {[%clk 0:02:56]} 5. cxd5 {[%clk 0:02:55.4]}
5... Nxd5 {[%clk 0:02:56.1]} 6. e4 {[%clk 0:02:55.3]} 6... Nxc3 {[%clk
0:02:56.6]} 7. bxc3 {[%clk 0:02:56.2]} 7... c5 {[%clk 0:02:57.3]} 8. Nf3 {[%clk
0:02:56.1]} 8... Nc6 {[%clk 0:02:54.4]} 9. Be3 {[%clk 0:02:52.9]} 9... Qa5
{[%clk 0:02:46]} 10. Bd2 {[%clk 0:02:34.8]} 10... O-O {[%clk 0:02:32]} 11. Bc4
{[%clk 0:02:28]} 11... b5 {[%clk 0:02:16.6]} 12. Bd5 {[%clk 0:02:23.9]} 12...
Bb7 {[%clk 0:02:04.9]} 13. O-O {[%clk 0:02:20.9]} 13... e6 {[%clk 0:01:59]} 14.
Bb3 {[%clk 0:02:20.1]} 14... Qb6 {[%clk 0:01:50.7]} 15. Be3 {[%clk 0:02:13.1]}
15... Rfd8 {[%clk 0:01:47.6]} 16. dxc5 {[%clk 0:02:00.6]} 16... Qc7 {[%clk
0:01:47.5]} 17. Qe2 {[%clk 0:01:58.5]} 17... Na5 {[%clk 0:01:43.1]} 18. Bc2
{[%clk 0:01:42.4]} 18... Nc4 {[%clk 0:01:40]} 19. Bd4 {[%clk 0:01:36.6]} 19...
e5 {[%clk 0:01:31.9]} 20. Be3 {[%clk 0:01:36.2]} 20... Rac8 {[%clk 0:01:23.7]}
21. Rfd1 {[%clk 0:01:31.1]} 21... Rxd1+ {[%clk 0:01:19.9]} 22. Rxd1 {[%clk
0:01:30.2]} 22... h6 {[%clk 0:01:19.3]} 23. Bb3 {[%clk 0:00:53.2]} 23... Nxe3
{[%clk 0:01:18.4]} 24. Qxe3 {[%clk 0:00:52.6]} 24... Qe7 {[%clk 0:01:17.9]} 25.
c4 {[%clk 0:00:28.1]} 25... bxc4 {[%clk 0:01:16.5]} 26. Bxc4 {[%clk 0:00:27.9]}
26... Rxc5 {[%clk 0:01:15.7]} 27. Bb3 {[%clk 0:00:25.7]} 27... Kh7 {[%clk
0:01:12.7]} 28. Qd3 {[%clk 0:00:22.7]} 28... Rc7 {[%clk 0:01:06.7]} 29. Nd2
{[%clk 0:00:20.7]} 29... Rd7 {[%clk 0:01:05]} 30. Qe2 {[%clk 0:00:20.8]} 30...
Bf6 {[%clk 0:00:55.6]} 31. Nc4 {[%clk 0:00:19.5]} 31... Qd8 {[%clk 0:00:55.7]}
32. Rxd7 {[%clk 0:00:18.4]} 32... Qxd7 {[%clk 0:00:56.3]} 33. Na5 {[%clk
0:00:17.2]} 33... Bc8 {[%clk 0:00:52.4]} 34. Qc4 {[%clk 0:00:17.1]} 34... Kg7
{[%clk 0:00:52.2]} 35. Nc6 {[%clk 0:00:16.8]} 35... Qd2 {[%clk 0:00:45.4]} 36.
Qxf7+ {[%clk 0:00:15]} 36... Kh8 {[%clk 0:00:45.8]} 37. Qg8# {[%clk 0:00:15]}
1-0

[Event "*** SCC Grand Prix: Titled Tuesday Blitz"]
[Site "Chess.com"]
[Date "2020.08.11"]
[Round "2"]
[White "GAusal"]
[Black "MF1966Idrisov"]
[Result "1-0"]
[WhiteElo "2142"]
[BlackElo "2374"]
[TimeControl "180+1"]
[EndTime "10:18:11 PDT"]
[Termination "GAusal won by checkmate"]

1. e4 {[%clk 0:03:00.9]} 1... c6 {[%clk 0:02:59.4]} 2. d4 {[%clk 0:02:58.9]}
2... d5 {[%clk 0:02:59.3]} 3. exd5 {[%clk 0:02:58.1]} 3... cxd5 {[%clk
0:02:59.1]} 4. Be2 {[%clk 0:02:53.9]} 4... Nc6 {[%clk 0:02:59]} 5. Nf3 {[%clk
0:02:53.8]} 5... Nf6 {[%clk 0:02:58.8]} 6. O-O {[%clk 0:02:49.8]} 6... Bg4
{[%clk 0:02:58.5]} 7. Bf4 {[%clk 0:02:46.2]} 7... e6 {[%clk 0:02:58.3]} 8. Nc3
{[%clk 0:02:43.3]} 8... Bd6 {[%clk 0:02:56.9]} 9. Bxd6 {[%clk 0:02:39.6]} 9...
Qxd6 {[%clk 0:02:56.2]} 10. Ne1 {[%clk 0:02:35.1]} 10... Bf5 {[%clk 0:02:52]}
11. g4 {[%clk 0:02:30.7]} 11... Bg6 {[%clk 0:02:51.1]} 12. f4 {[%clk 0:02:27.4]}
12... Be4 {[%clk 0:02:40.3]} 13. Nb5 {[%clk 0:02:20.8]} 13... Qb8 {[%clk
0:02:33.8]} 14. g5 {[%clk 0:02:16.6]} 14... Nd7 {[%clk 0:02:32]} 15. c4 {[%clk
0:02:13.5]} 15... a6 {[%clk 0:02:31]} 16. Nc3 {[%clk 0:02:09.2]} 16... O-O
{[%clk 0:02:21.9]} 17. Bg4 {[%clk 0:02:01.5]} 17... Nb6 {[%clk 0:02:17.9]} 18.
c5 {[%clk 0:01:56.9]} 18... Nc4 {[%clk 0:02:16.9]} 19. Nxe4 {[%clk 0:01:52]}
19... Ne3 {[%clk 0:02:02.7]} 20. Qe2 {[%clk 0:01:48.6]} 20... Nxf1 {[%clk
0:01:52.8]} 21. Nd6 {[%clk 0:01:47.5]} 21... Nxh2 {[%clk 0:01:48.5]} 22. Qxh2
{[%clk 0:01:43.1]} 22... Nxd4 {[%clk 0:01:47.6]} 23. Nd3 {[%clk 0:01:39.2]}
23... b6 {[%clk 0:01:45]} 24. Kf2 {[%clk 0:01:34.7]} 24... bxc5 {[%clk
0:01:43.9]} 25. Rh1 {[%clk 0:01:27.9]} 25... h6 {[%clk 0:01:43.5]} 26. gxh6
{[%clk 0:01:18.1]} 26... g6 {[%clk 0:01:39.4]} 27. f5 {[%clk 0:01:13.9]} 27...
exf5 {[%clk 0:01:17.1]} 28. Bf3 {[%clk 0:00:59.5]} 28... c4 {[%clk 0:01:08.3]}
29. Qe5 {[%clk 0:00:54.9]} 29... f6 {[%clk 0:01:04]} 30. Qxd4 {[%clk 0:00:42.7]}
30... cxd3 {[%clk 0:01:00]} 31. Bxd5+ {[%clk 0:00:38.9]} 31... Kh8 {[%clk
0:00:58.3]} 32. Bxa8 {[%clk 0:00:36.4]} 32... Qxa8 {[%clk 0:00:55.9]} 33. Re1
{[%clk 0:00:30.9]} 33... Qb8 {[%clk 0:00:44.1]} 34. Re8 {[%clk 0:00:21.1]} 34...
Rxe8 {[%clk 0:00:40.2]} 35. Qxf6+ {[%clk 0:00:18.5]} 35... Kh7 {[%clk
0:00:39.3]} 36. Qg7# {[%clk 0:00:17.7]} 1-0

[Event "*** SCC Grand Prix: Titled Tuesday Blitz"]
[Site "Chess.com"]
[Date "2020.08.11"]
[Round "2"]
[White "ChessBitl"]
[Black "barbara25"]
[Result "1-0"]
[WhiteElo "2417"]
[BlackElo "2187"]
[TimeControl "180+1"]
[EndTime "10:18:12 PDT"]
[Termination "ChessBitl won by resignation"]

1. e4 {[%clk 0:03:00.7]} 1... c5 {[%clk 0:02:39.1]} 2. Nf3 {[%clk 0:02:59.7]}
2... d6 {[%clk 0:02:36.9]} 3. d4 {[%clk 0:02:58.2]} 3... cxd4 {[%clk 0:02:37.1]}
4. Nxd4 {[%clk 0:02:58.7]} 4... Nf6 {[%clk 0:02:37.7]} 5. f3 {[%clk 0:02:59.2]}
5... a6 {[%clk 0:02:34.7]} 6. c4 {[%clk 0:02:50.5]} 6... e5 {[%clk 0:02:34.2]}
7. Nc2 {[%clk 0:02:49.6]} 7... Be7 {[%clk 0:02:34.4]} 8. Nc3 {[%clk 0:02:48]}
8... Be6 {[%clk 0:02:34.5]} 9. Ne3 {[%clk 0:02:46.8]} 9... O-O {[%clk
0:02:34.4]} 10. Be2 {[%clk 0:02:35.7]} 10... Nbd7 {[%clk 0:02:33.4]} 11. Ned5
{[%clk 0:02:32.5]} 11... Bxd5 {[%clk 0:02:30.1]} 12. cxd5 {[%clk 0:02:32]} 12...
Rc8 {[%clk 0:02:23.9]} 13. O-O {[%clk 0:02:30.1]} 13... b5 {[%clk 0:02:24.1]}
14. Be3 {[%clk 0:02:23.9]} 14... Nh5 {[%clk 0:02:22.9]} 15. g3 {[%clk
0:02:20.3]} 15... g6 {[%clk 0:02:19]} 16. Bh6 {[%clk 0:02:16.7]} 16... Ng7
{[%clk 0:02:14.1]} 17. Kg2 {[%clk 0:02:03.2]} 17... f5 {[%clk 0:02:13.1]} 18.
Qd2 {[%clk 0:01:59.9]} 18... Nf6 {[%clk 0:02:00.9]} 19. exf5 {[%clk 0:01:56.4]}
19... gxf5 {[%clk 0:01:53.7]} 20. Bd3 {[%clk 0:01:56.8]} 20... Nd7 {[%clk
0:01:47.1]} 21. Kh1 {[%clk 0:01:49.9]} 21... Qe8 {[%clk 0:01:40]} 22. Rae1
{[%clk 0:01:44.7]} 22... Qg6 {[%clk 0:01:39.7]} 23. g4 {[%clk 0:01:40.3]} 23...
b4 {[%clk 0:01:27.1]} 24. Nd1 {[%clk 0:01:37.2]} 24... e4 {[%clk 0:01:23.4]} 25.
Bxa6 {[%clk 0:01:30.7]} 25... Rce8 {[%clk 0:01:18.1]} 26. Bb5 {[%clk 0:01:27.1]}
26... Rd8 {[%clk 0:01:12.9]} 27. Bxg7 {[%clk 0:01:22.9]} 27... Qxg7 {[%clk
0:01:10.5]} 28. gxf5 {[%clk 0:01:23]} 28... Rxf5 {[%clk 0:01:08.7]} 29. Rg1
{[%clk 0:01:19.3]} 29... Bg5 {[%clk 0:01:05.9]} 30. Ne3 {[%clk 0:01:19.3]} 30...
Rxf3 {[%clk 0:01:02.6]} 31. Rxg5 {[%clk 0:01:13.9]} 31... Qxg5 {[%clk
0:00:59.5]} 32. Rg1 {[%clk 0:01:13.9]} 32... Qxg1+ {[%clk 0:00:58.2]} 33. Kxg1
{[%clk 0:01:14.8]} 33... Ne5 {[%clk 0:00:55.1]} 34. Be2 {[%clk 0:01:01.3]} 34...
Rf7 {[%clk 0:00:52.3]} 35. Kh1 {[%clk 0:00:56.1]} 35... Kh8 {[%clk 0:00:51.2]}
36. Qxb4 {[%clk 0:00:52.6]} 36... Rg8 {[%clk 0:00:47.8]} 37. Qxd6 {[%clk
0:00:49.8]} 37... Nf3 {[%clk 0:00:39.1]} 38. Bxf3 {[%clk 0:00:46.5]} 38... exf3
{[%clk 0:00:35.3]} 39. Qe5+ {[%clk 0:00:46.7]} 39... Rgg7 {[%clk 0:00:35.3]} 40.
Qe8+ {[%clk 0:00:35.7]} 1-0

[Event "*** SCC Grand Prix: Titled Tuesday Blitz"]
[Site "Chess.com"]
[Date "2020.08.11"]
[Round "2"]
[White "12teen"]
[Black "LimeInTheCoconut"]
[Result "1-0"]
[WhiteElo "2680"]
[BlackElo "2452"]
[TimeControl "180+1"]
[EndTime "10:18:14 PDT"]
[Termination "12teen won on time"]

1. g3 {[%clk 0:03:00.9]} 1... d5 {[%clk 0:02:59.5]} 2. Bg2 {[%clk 0:03:00.1]}
2... Nf6 {[%clk 0:03:00.2]} 3. d3 {[%clk 0:02:59.7]} 3... e6 {[%clk 0:02:59.9]}
4. Nc3 {[%clk 0:02:59.8]} 4... Nbd7 {[%clk 0:02:54.7]} 5. e4 {[%clk 0:02:58.7]}
5... dxe4 {[%clk 0:02:54.4]} 6. dxe4 {[%clk 0:02:59.6]} 6... Be7 {[%clk
0:02:52.4]} 7. f4 {[%clk 0:02:59.1]} 7... c6 {[%clk 0:02:49.9]} 8. Qe2 {[%clk
0:02:57.5]} 8... O-O {[%clk 0:02:47.2]} 9. Nf3 {[%clk 0:02:57.4]} 9... a5 {[%clk
0:02:46.8]} 10. O-O {[%clk 0:02:52.5]} 10... b6 {[%clk 0:02:45.8]} 11. Rd1
{[%clk 0:02:52]} 11... Ba6 {[%clk 0:02:43.8]} 12. Qe1 {[%clk 0:02:49.3]} 12...
Qc7 {[%clk 0:02:42.2]} 13. h3 {[%clk 0:02:48]} 13... Rad8 {[%clk 0:02:40.3]} 14.
Be3 {[%clk 0:02:47.7]} 14... Bc5 {[%clk 0:02:37.5]} 15. Bxc5 {[%clk 0:02:32.3]}
15... Nxc5 {[%clk 0:02:37.2]} 16. Qe3 {[%clk 0:02:30.9]} 16... Rxd1+ {[%clk
0:02:33]} 17. Rxd1 {[%clk 0:02:31.8]} 17... Rd8 {[%clk 0:02:33.3]} 18. Rxd8+
{[%clk 0:02:31.3]} 18... Qxd8 {[%clk 0:02:33.6]} 19. Nd4 {[%clk 0:02:26.2]}
19... Qc7 {[%clk 0:02:25.8]} 20. Nb3 {[%clk 0:02:18.2]} 20... Nxb3 {[%clk
0:02:19.6]} 21. axb3 {[%clk 0:02:19.1]} 21... Nd7 {[%clk 0:02:15.4]} 22. e5
{[%clk 0:02:17.8]} 22... c5 {[%clk 0:01:58.9]} 23. Ne4 {[%clk 0:02:15.1]} 23...
c4 {[%clk 0:01:54.4]} 24. bxc4 {[%clk 0:02:10.8]} 24... Qxc4 {[%clk 0:01:49.4]}
25. Qd2 {[%clk 0:02:10.4]} 25... Qc7 {[%clk 0:01:42]} 26. Nd6 {[%clk 0:01:59.4]}
26... h6 {[%clk 0:01:33.8]} 27. Be4 {[%clk 0:01:58.3]} 27... Nc5 {[%clk
0:01:30.9]} 28. Bf3 {[%clk 0:01:56.1]} 28... Na4 {[%clk 0:01:20.1]} 29. c3
{[%clk 0:01:49.1]} 29... Nc5 {[%clk 0:01:11.1]} 30. Qd4 {[%clk 0:01:38.4]} 30...
Nb3 {[%clk 0:00:55.8]} 31. Qe4 {[%clk 0:01:29.1]} 31... Nd2 {[%clk 0:00:32]} 32.
Qa8+ {[%clk 0:01:28.8]} 32... Kh7 {[%clk 0:00:32.1]} 33. Be4+ {[%clk 0:01:24.3]}
33... Nxe4 {[%clk 0:00:31.6]} 34. Qxe4+ {[%clk 0:01:22.7]} 34... g6 {[%clk
0:00:21.3]} 35. Qd4 {[%clk 0:01:23]} 35... Qc6 {[%clk 0:00:14.9]} 36. Qe4 {[%clk
0:01:14.2]} 36... Qxe4 {[%clk 0:00:09.1]} 37. Nxe4 {[%clk 0:01:14.2]} 37... Kg7
{[%clk 0:00:04.3]} 38. Kf2 {[%clk 0:01:13.7]} 38... Bb7 {[%clk 0:00:03.9]} 39.
Nd6 {[%clk 0:01:12.9]} 39... Ba6 {[%clk 0:00:03.6]} 40. Ke3 {[%clk 0:01:10.2]}
40... Kf8 {[%clk 0:00:03.9]} 41. Kd4 {[%clk 0:01:09.1]} 41... Ke7 {[%clk
0:00:04.5]} 42. c4 {[%clk 0:01:08.9]} 42... g5 {[%clk 0:00:04.2]} 43. fxg5
{[%clk 0:01:07.4]} 43... hxg5 {[%clk 0:00:05.1]} 44. h4 {[%clk 0:01:08.3]} 44...
gxh4 {[%clk 0:00:04.9]} 45. gxh4 {[%clk 0:01:09.2]} 45... f6 {[%clk 0:00:03.6]}
46. h5 {[%clk 0:01:09.7]} 46... fxe5+ {[%clk 0:00:02.3]} 47. Kxe5 {[%clk
0:01:10.6]} 1-0

[Event "*** SCC Grand Prix: Titled Tuesday Blitz"]
[Site "Chess.com"]
[Date "2020.08.11"]
[Round "2"]
[White "BeanScreen"]
[Black "IriBu"]
[Result "1-0"]
[WhiteElo "2715"]
[BlackElo "2474"]
[TimeControl "180+1"]
[EndTime "10:18:16 PDT"]
[Termination "BeanScreen won by resignation"]

1. e4 {[%clk 0:03:00.7]} 1... c5 {[%clk 0:02:42.8]} 2. Nf3 {[%clk 0:03:01.6]}
2... d6 {[%clk 0:02:41.6]} 3. d4 {[%clk 0:03:02.2]} 3... cxd4 {[%clk 0:02:42.5]}
4. Nxd4 {[%clk 0:03:03.1]} 4... Nf6 {[%clk 0:02:43.1]} 5. Nc3 {[%clk 0:03:03.7]}
5... a6 {[%clk 0:02:42.8]} 6. Be3 {[%clk 0:03:04.4]} 6... e5 {[%clk 0:02:42.3]}
7. Nb3 {[%clk 0:03:05.1]} 7... Be6 {[%clk 0:02:39.6]} 8. h3 {[%clk 0:03:05.8]}
8... Nbd7 {[%clk 0:02:39.3]} 9. g4 {[%clk 0:03:05.6]} 9... h6 {[%clk 0:02:38.6]}
10. Qd2 {[%clk 0:03:04.4]} 10... b5 {[%clk 0:02:35.5]} 11. Bg2 {[%clk
0:03:04.6]} 11... Nb6 {[%clk 0:02:28.6]} 12. O-O-O {[%clk 0:03:04.6]} 12... Nc4
{[%clk 0:02:28.2]} 13. Qd3 {[%clk 0:03:04.2]} 13... Rc8 {[%clk 0:02:24.4]} 14.
Nd5 {[%clk 0:03:00.8]} 14... Bxd5 {[%clk 0:02:22.7]} 15. exd5 {[%clk 0:03:01.7]}
15... Nxe3 {[%clk 0:02:20.3]} 16. Qxe3 {[%clk 0:03:02.6]} 16... Be7 {[%clk
0:02:20.1]} 17. Kb1 {[%clk 0:03:01.6]} 17... Qc7 {[%clk 0:02:17.8]} 18. c3
{[%clk 0:02:55.7]} 18... O-O {[%clk 0:02:10.9]} 19. f4 {[%clk 0:02:42.9]} 19...
exf4 {[%clk 0:02:08.6]} 20. Qxf4 {[%clk 0:02:43.8]} 20... Qc4 {[%clk 0:01:30.1]}
21. Rd4 {[%clk 0:02:23.2]} 21... Qe2 {[%clk 0:01:22.1]} 22. Bf3 {[%clk
0:02:03.3]} 22... Qe5 {[%clk 0:01:21.7]} 23. Qd2 {[%clk 0:01:49]} 23... Nd7
{[%clk 0:01:09.7]} 24. h4 {[%clk 0:01:48.1]} 24... Qg3 {[%clk 0:01:00.6]} 25.
Bd1 {[%clk 0:01:35.6]} 25... Bxh4 {[%clk 0:00:45.6]} 26. Rd3 {[%clk 0:01:14.4]}
26... Qf2 {[%clk 0:00:44.6]} 27. Qxf2 {[%clk 0:01:08]} 27... Bxf2 {[%clk
0:00:44]} 28. Rdh3 {[%clk 0:01:06.7]} 28... f6 {[%clk 0:00:33]} 29. Na5 {[%clk
0:01:06]} 29... Ne5 {[%clk 0:00:31.8]} 30. Bc2 {[%clk 0:01:03.4]} 30... Rc5
{[%clk 0:00:27]} 31. Bf5 {[%clk 0:00:49.5]} 31... Rb8 {[%clk 0:00:23.5]} 32. Nc6
{[%clk 0:00:46.6]} 32... Nxc6 {[%clk 0:00:21.8]} 33. dxc6 {[%clk 0:00:46.6]}
33... Rxc6 {[%clk 0:00:22]} 34. Rd3 {[%clk 0:00:46.4]} 34... Bg3 {[%clk
0:00:20.3]} 35. Rxg3 {[%clk 0:00:44.9]} 35... Re8 {[%clk 0:00:17.4]} 36. Bd7
{[%clk 0:00:45.2]} 1-0

[Event "*** SCC Grand Prix: Titled Tuesday Blitz"]
[Site "Chess.com"]
[Date "2020.08.11"]
[Round "2"]
[White "a3aki"]
[Black "Chessdemon2019"]
[Result "1-0"]
[WhiteElo "2069"]
[BlackElo "2352"]
[TimeControl "180+1"]
[EndTime "10:18:16 PDT"]
[Termination "a3aki won by resignation"]

1. e4 {[%clk 0:03:00.9]} 1... c5 {[%clk 0:03:00]} 2. Nf3 {[%clk 0:02:59.5]} 2...
d6 {[%clk 0:03:00.2]} 3. d4 {[%clk 0:03:00.2]} 3... cxd4 {[%clk 0:03:01.1]} 4.
Nxd4 {[%clk 0:03:00.6]} 4... Nf6 {[%clk 0:03:01.6]} 5. Nc3 {[%clk 0:03:01.2]}
5... a6 {[%clk 0:03:02.3]} 6. h3 {[%clk 0:02:59.7]} 6... e5 {[%clk 0:03:02.1]}
7. Nde2 {[%clk 0:03:00.5]} 7... h5 {[%clk 0:03:02.6]} 8. g3 {[%clk 0:03:01]}
8... Be6 {[%clk 0:03:02.6]} 9. Bg2 {[%clk 0:03:01.6]} 9... Be7 {[%clk
0:03:01.9]} 10. Nd5 {[%clk 0:03:02.2]} 10... Nxd5 {[%clk 0:02:59.8]} 11. exd5
{[%clk 0:03:02.7]} 11... Bf5 {[%clk 0:03:00.5]} 12. c4 {[%clk 0:03:03.2]} 12...
Nd7 {[%clk 0:03:00.3]} 13. Nc3 {[%clk 0:03:03.2]} 13... Rc8 {[%clk 0:02:58.6]}
14. b3 {[%clk 0:03:03.2]} 14... b5 {[%clk 0:02:57.6]} 15. Qe2 {[%clk 0:03:02]}
15... bxc4 {[%clk 0:02:57]} 16. bxc4 {[%clk 0:03:02.3]} 16... O-O {[%clk
0:02:55.3]} 17. O-O {[%clk 0:03:01.2]} 17... Nc5 {[%clk 0:02:55.3]} 18. Ne4
{[%clk 0:02:59.2]} 18... Nxe4 {[%clk 0:02:50.7]} 19. Bxe4 {[%clk 0:03:00.1]}
19... Bxe4 {[%clk 0:02:51]} 20. Qxe4 {[%clk 0:02:59.8]} 20... f5 {[%clk
0:02:51.7]} 21. Qe2 {[%clk 0:02:59.2]} 21... g6 {[%clk 0:02:51]} 22. Bd2 {[%clk
0:02:55.2]} 22... Bg5 {[%clk 0:02:49.2]} 23. Rfc1 {[%clk 0:02:52.3]} 23... Kg7
{[%clk 0:02:41.3]} 24. h4 {[%clk 0:02:52.5]} 24... Bxd2 {[%clk 0:02:40.7]} 25.
Qxd2 {[%clk 0:02:53.2]} 25... f4 {[%clk 0:02:36.4]} 26. Rab1 {[%clk 0:02:48.1]}
26... Rc7 {[%clk 0:02:28.7]} 27. c5 {[%clk 0:02:39.2]} 27... dxc5 {[%clk
0:02:24.4]} 28. d6 {[%clk 0:02:35.8]} 28... fxg3 {[%clk 0:02:20.2]} 29. fxg3
{[%clk 0:02:31.8]} 29... Rd7 {[%clk 0:02:18]} 30. Rxc5 {[%clk 0:02:25.6]} 30...
Rxd6 {[%clk 0:02:15]} 31. Rb7+ {[%clk 0:02:25.6]} 31... Rf7 {[%clk 0:02:14.8]}
32. Rxf7+ {[%clk 0:02:22.7]} 32... Kxf7 {[%clk 0:02:14.9]} 33. Qf2+ {[%clk
0:02:10.1]} 33... Kg7 {[%clk 0:02:13.5]} 34. Rxe5 {[%clk 0:02:07.8]} 34... Rd1+
{[%clk 0:01:45.3]} 35. Re1 {[%clk 0:02:06.9]} 35... Rxe1+ {[%clk 0:01:27.2]} 36.
Qxe1 {[%clk 0:02:05.8]} 36... Qd4+ {[%clk 0:01:27.9]} 37. Qf2 {[%clk 0:02:05.6]}
37... Qd3 {[%clk 0:01:24.5]} 38. Qb2+ {[%clk 0:02:02.7]} 38... Kf7 {[%clk
0:01:23.3]} 39. Qb7+ {[%clk 0:02:01.1]} 39... Ke6 {[%clk 0:01:23.4]} 40. Qc8+
{[%clk 0:02:00.7]} 40... Ke5 {[%clk 0:01:23.1]} 41. Qe8+ {[%clk 0:01:59.1]}
41... Kd4 {[%clk 0:01:23.3]} 42. Qa4+ {[%clk 0:01:58.1]} 42... Kc3 {[%clk
0:01:22.1]} 43. Qa3+ {[%clk 0:01:56.6]} 43... Kc2 {[%clk 0:01:22.5]} 44. Qc5+
{[%clk 0:01:56.8]} 44... Kb2 {[%clk 0:01:22.7]} 45. Qe5+ {[%clk 0:01:51.2]}
45... Kxa2 {[%clk 0:01:22.7]} 46. Qe6+ {[%clk 0:01:51.4]} 46... Kb1 {[%clk
0:01:22.3]} 47. Qb6+ {[%clk 0:01:50.5]} 47... Kc1 {[%clk 0:01:22]} 48. Qc7+
{[%clk 0:01:49.2]} 48... Kd1 {[%clk 0:01:21.9]} 49. Qf4 {[%clk 0:01:46.9]} 49...
a5 {[%clk 0:00:54.4]} 50. g4 {[%clk 0:01:38.4]} 50... hxg4 {[%clk 0:00:39.3]}
51. Qxg4+ {[%clk 0:01:36]} 51... Kc1 {[%clk 0:00:39.3]} 52. Qg5+ {[%clk
0:01:32.7]} 52... Kb2 {[%clk 0:00:35.9]} 53. Qxa5 {[%clk 0:01:29.9]} 53... Qg3+
{[%clk 0:00:34.4]} 54. Kf1 {[%clk 0:01:28.2]} 54... Qf4+ {[%clk 0:00:27.1]} 55.
Kg1 {[%clk 0:01:24.5]} 55... Qg4+ {[%clk 0:00:24.2]} 56. Kf1 {[%clk 0:01:24]}
56... Qh3+ {[%clk 0:00:24.1]} 57. Kg1 {[%clk 0:01:22.9]} 57... Qg3+ {[%clk
0:00:21.1]} 58. Kf1 {[%clk 0:01:18.9]} 58... Kc2 {[%clk 0:00:21.1]} 59. Qa2+
{[%clk 0:01:16.1]} 59... Kd3 {[%clk 0:00:21.1]} 60. Qb3+ {[%clk 0:01:15.9]}
60... Kd4 {[%clk 0:00:20.3]} 61. Qxg3 {[%clk 0:01:16.5]} 61... Ke4 {[%clk
0:00:20.3]} 62. Qxg6+ {[%clk 0:01:16.6]} 1-0

[Event "*** SCC Grand Prix: Titled Tuesday Blitz"]
[Site "Chess.com"]
[Date "2020.08.11"]
[Round "2"]
[White "kakarot_001"]
[Black "ehrenfeld"]
[Result "1/2-1/2"]
[WhiteElo "2814"]
[BlackElo "2553"]
[TimeControl "180+1"]
[EndTime "10:18:17 PDT"]
[Termination "Game drawn by repetition"]

1. Nf3 {[%clk 0:03:00.9]} 1... f5 {[%clk 0:02:59.1]} 2. d3 {[%clk 0:02:58.2]}
2... d6 {[%clk 0:02:58.9]} 3. e4 {[%clk 0:02:58]} 3... e5 {[%clk 0:02:58.9]} 4.
Nc3 {[%clk 0:02:53.3]} 4... Nc6 {[%clk 0:02:58]} 5. exf5 {[%clk 0:02:46.1]} 5...
Nge7 {[%clk 0:02:57.2]} 6. d4 {[%clk 0:02:42.7]} 6... exd4 {[%clk 0:02:56.6]} 7.
Nxd4 {[%clk 0:02:32.1]} 7... Nxd4 {[%clk 0:02:56.2]} 8. Qxd4 {[%clk 0:02:33]}
8... Nxf5 {[%clk 0:02:56.6]} 9. Qa4+ {[%clk 0:02:27.9]} 9... c6 {[%clk
0:02:48.8]} 10. Bd3 {[%clk 0:02:24.4]} 10... Be7 {[%clk 0:02:46.8]} 11. O-O
{[%clk 0:02:03.5]} 11... O-O {[%clk 0:02:45.1]} 12. Bd2 {[%clk 0:02:02.7]} 12...
d5 {[%clk 0:02:42.9]} 13. Rae1 {[%clk 0:01:59.9]} 13... Bd6 {[%clk 0:02:31.1]}
14. f4 {[%clk 0:01:57]} 14... Bc5+ {[%clk 0:02:24.6]} 15. Kh1 {[%clk 0:01:49]}
15... Qh4 {[%clk 0:02:14.1]} 16. Bxf5 {[%clk 0:01:48.9]} 16... Bxf5 {[%clk
0:02:11.4]} 17. Qb3 {[%clk 0:01:39.3]} 17... Bf2 {[%clk 0:01:35.1]} 18. Re2
{[%clk 0:00:48.2]} 18... Bg3 {[%clk 0:01:34.6]} 19. h3 {[%clk 0:00:48.1]} 19...
Rae8 {[%clk 0:01:28.4]} 20. Kg1 {[%clk 0:00:31.1]} 20... Kh8 {[%clk 0:00:50.2]}
21. Rf3 {[%clk 0:00:30.4]} 21... Bg4 {[%clk 0:00:31.2]} 22. Rxe8 {[%clk
0:00:18.6]} 22... Rxe8 {[%clk 0:00:31]} 23. Rxg3 {[%clk 0:00:18.9]} 23... Qxg3
{[%clk 0:00:24.1]} 24. hxg4 {[%clk 0:00:19]} 24... Re1+ {[%clk 0:00:15.5]} 25.
Bxe1 {[%clk 0:00:15.7]} 25... Qxe1+ {[%clk 0:00:15.4]} 26. Kh2 {[%clk
0:00:16.2]} 26... Qh4+ {[%clk 0:00:15.3]} 27. Kg1 {[%clk 0:00:16.7]} 27... Qe1+
{[%clk 0:00:15.4]} 28. Kh2 {[%clk 0:00:17.2]} 28... Qh4+ {[%clk 0:00:15.3]} 29.
Kg1 {[%clk 0:00:17.8]} 29... Qe1+ {[%clk 0:00:15.1]} 1/2-1/2

[Event "*** SCC Grand Prix: Titled Tuesday Blitz"]
[Site "Chess.com"]
[Date "2020.08.11"]
[Round "2"]
[White "Artem_Sadovsky"]
[Black "JonasHilwerda"]
[Result "1-0"]
[WhiteElo "2425"]
[BlackElo "2199"]
[TimeControl "180+1"]
[EndTime "10:18:20 PDT"]
[Termination "Artem_Sadovsky won by resignation"]

1. Nf3 {[%clk 0:02:49.3]} 1... Nf6 {[%clk 0:02:59.3]} 2. g3 {[%clk 0:02:48.9]}
2... b6 {[%clk 0:02:59.8]} 3. Bg2 {[%clk 0:02:49.1]} 3... Bb7 {[%clk 0:03:00.5]}
4. O-O {[%clk 0:02:48.4]} 4... g6 {[%clk 0:03:01.1]} 5. c4 {[%clk 0:02:48]} 5...
Bg7 {[%clk 0:03:01.1]} 6. b3 {[%clk 0:02:46.2]} 6... O-O {[%clk 0:03:01.4]} 7.
Bb2 {[%clk 0:02:46]} 7... d6 {[%clk 0:03:01.8]} 8. d3 {[%clk 0:02:45.7]} 8... e5
{[%clk 0:02:59.9]} 9. Nbd2 {[%clk 0:02:45.8]} 9... Nbd7 {[%clk 0:02:59.6]} 10.
Qc2 {[%clk 0:02:42.2]} 10... Re8 {[%clk 0:02:57.7]} 11. Rfe1 {[%clk 0:02:12.2]}
11... Nf8 {[%clk 0:02:26.3]} 12. b4 {[%clk 0:01:59.2]} 12... a5 {[%clk
0:02:14.1]} 13. a3 {[%clk 0:01:42.1]} 13... Ne6 {[%clk 0:01:57.2]} 14. e3 {[%clk
0:01:23.8]} 14... Nd7 {[%clk 0:01:14.8]} 15. d4 {[%clk 0:01:18.4]} 15... exd4
{[%clk 0:00:43.7]} 16. exd4 {[%clk 0:01:17.7]} 16... d5 {[%clk 0:00:22.2]} 17.
c5 {[%clk 0:01:15.1]} 17... bxc5 {[%clk 0:00:18.5]} 18. dxc5 {[%clk 0:01:07.5]}
18... Bxb2 {[%clk 0:00:18.6]} 19. Qxb2 {[%clk 0:01:07.7]} 19... Qf6 {[%clk
0:00:19.3]} 20. Qxf6 {[%clk 0:00:52.6]} 20... Nxf6 {[%clk 0:00:20.2]} 21. Ne5
{[%clk 0:00:53.3]} 21... c6 {[%clk 0:00:19.3]} 22. Nb3 {[%clk 0:00:51.6]} 22...
axb4 {[%clk 0:00:19.3]} 23. axb4 {[%clk 0:00:52.5]} 23... Ba6 {[%clk 0:00:18.7]}
24. Nxc6 {[%clk 0:00:48.1]} 24... Bc4 {[%clk 0:00:17.6]} 25. Ne7+ {[%clk
0:00:47.9]} 25... Kg7 {[%clk 0:00:17]} 26. Rxa8 {[%clk 0:00:48.8]} 26... Rxa8
{[%clk 0:00:17.1]} 27. Na5 {[%clk 0:00:49]} 27... Rb8 {[%clk 0:00:15.9]} 28.
Nec6 {[%clk 0:00:29.9]} 28... Rb5 {[%clk 0:00:14.3]} 29. Nxc4 {[%clk 0:00:30.3]}
29... dxc4 {[%clk 0:00:14]} 30. Bf1 {[%clk 0:00:31.2]} 30... Rb8 {[%clk
0:00:07.6]} 31. Nxb8 {[%clk 0:00:30.6]} 31... Nc7 {[%clk 0:00:08.5]} 32. Bxc4
{[%clk 0:00:29.8]} 1-0